bitfinex/quotes_ETHUSD_20241203
["timestamp","ask_amount","ask_price","bid_price","bid_amount"]
[1733238569106,4.4280235,3593.5,3591.7,0.5481358]
[1733238569107,1.6173,3593.5,3592.0,2.78396]
[1733238569305,1.6173,3593.5,3592.4,3.0]
[1733238569454,1.6173,3593.5,3592.5,2.78356]
[1733238569809,1.6173,3593.5,3592.4,0.55]
[1733238570310,2.23776213,3593.5,3591.9,0.55164038]
[1733238570508,2.78318,3593.0,3591.4,1.6401]
[1733238570653,0.0279135,3592.9,3591.5,2.78434]
[1733238571007,0.0279135,3592.9,3591.4,1.6401]
[1733238571008,1.5044,3592.9,3591.4,2.21361228]
[1733238571273,1.5323135,3592.9,3591.4,2.21361228]
[1733238571444,0.58404998,3592.8,3591.4,2.43497351]
[1733238571781,1.5044,3592.9,3591.5,0.02783896]
[1733238571981,2.13244863,3593.5,3591.5,0.02783896]
[1733238572484,0.0279135,3593.4,3592.2,3.0]
[1733238572684,0.0279135,3593.4,3592.3,0.55]
[1733238572920,1.5399,3593.5,3592.5,0.55]
[1733238573181,0.61272213,3593.4,3592.5,0.028]
[1733238573395,0.58480863,3593.4,3592.5,0.028]
[1733238573820,0.0279135,3593.3,3592.5,0.028]
[1733238574136,7.0916763,3592.6,3592.5,0.028]
[1733238574313,4.3081863,3592.6,3592.5,0.028]
[1733238575139,1.5846,3593.0,3592.5,0.028]
[1733238575428,5.0,3594.3,3592.5,0.028]
[1733238575429,5.8882863,3593.6,3592.5,0.028]
[1733238575598,1.5801,3593.6,3592.9,0.55]
[1733238575790,1.6483135,3594.0,3592.9,0.578]
[1733238575992,1.6204,3594.0,3593.1,1.5345]
[1733238576193,4.3081863,3594.1,3593.1,1.5345]
[1733238576194,5.9285863,3594.6,3593.2,3.55]
[1733238576422,1.6204,3594.6,3593.3,3.02782423]
[1733238576690,1.6204,3594.6,3593.4,2.78287]
[1733238576691,0.0279135,3594.5,3593.4,2.78287]
[1733238576928,1.6204,3594.6,3593.4,0.55]
[1733238577085,1.6204,3594.6,3593.4,0.76125]
[1733238577287,0.0279135,3594.5,3593.4,0.76125]
[1733238577502,0.0279135,3594.5,3593.3,0.028]
[1733238578145,4.3081863,3594.1,3593.3,0.028]
[1733238579294,4.3081863,3594.1,3593.5,3.55]
[1733238579499,4.3081863,3594.1,3593.5,0.028]
[1733238579821,4.3081863,3594.1,3593.6,3.55]
[1733238580142,4.3081863,3594.1,3593.6,4.186079]
[1733238580363,4.3081863,3594.1,3593.8,0.55]
[1733238580688,4.3081863,3594.1,3593.7,0.55]
[1733238581092,4.3081863,3594.1,3593.5,0.028]
[1733238581309,4.3081863,3594.1,3592.4,2.81141512]
[1733238581310,1.5455,3593.1,3591.0,2.78468]
[1733238581497,4.3081863,3591.9,3591.4,2.78441]
[1733238582126,4.3081863,3591.9,3591.2,0.32200009]
[1733238582342,4.3081863,3591.9,3591.5,2.78434]
[1733238582753,4.3081863,3591.9,3591.5,3.0]
[1733238583046,4.3081863,3591.9,3591.5,0.028]
[1733238583743,4.3081863,3591.9,3591.5,2.81227]
[1733238584046,4.3081863,3592.4,3591.6,2.78427]
[1733238584250,4.3081863,3592.4,3591.7,2.78416]
[1733238584551,4.3081863,3592.4,3591.9,0.55]
[1733238584696,4.3081863,3592.9,3591.9,0.55]
[1733238585014,4.3081863,3592.9,3592.5,0.55]
[1733238585212,4.3081863,3592.9,3592.5,0.578]
[1733238585527,4.3081863,3593.4,3592.6,0.55]
[1733238585732,4.3081863,3593.4,3592.7,2.7834]
[1733238585901,4.3081863,3593.4,3592.8,0.55]
[1733238586099,4.3081863,3593.4,3592.7,0.028]
[1733238586374,4.3081863,3592.9,3592.7,0.028]
[1733238587309,4.3081863,3593.4,3592.7,0.578]
[1733238587511,4.3081863,3593.4,3592.8,0.336147]
[1733238587713,4.3081863,3593.4,3592.8,0.364147]
[1733238587941,4.3081863,3593.4,3592.9,0.55]
[1733238588454,3.0,3594.6,3592.9,0.55]
[1733238588455,1.5514,3594.0,3592.9,0.55]
[1733238588595,4.3081863,3593.6,3592.8,0.028]
[1733238588795,0.0279135,3593.5,3592.8,0.028]
[1733238589024,4.3360998,3593.6,3592.8,0.028]
[1733238589349,0.0279135,3593.5,3592.8,0.028]
[1733238589500,4.3081863,3593.6,3592.8,0.028]
[1733238589915,4.3081863,3593.6,3592.8,0.364149]
[1733238590145,4.3081863,3593.6,3592.8,0.028]
[1733238590355,0.0279135,3593.5,3592.8,0.028]
[1733238591373,4.3081863,3593.6,3592.9,0.55]
[1733238591662,1.6592,3594.5,3593.2,0.55]
[1733238592160,1.6592,3594.5,3593.5,0.55]
[1733238592307,0.0279135,3594.4,3593.5,0.578]
[1733238592809,0.0279135,3594.4,3593.5,0.97108082]
[1733238593156,1.5246,3595.0,3593.8,0.55]
[1733238593457,1.5246,3595.0,3594.3,0.55]
[1733238593624,1.5737,3595.5,3594.4,2.78202]
[1733238593826,1.5737,3595.5,3594.5,0.55]
[1733238594148,1.5737,3595.5,3594.5,0.028]
[1733238594149,2.78172,3594.9,3594.5,0.028]
[1733238594300,1.5743,3594.7,3594.5,0.028]
[1733238595449,0.58818863,3595.4,3594.5,0.028]
[1733238595450,2.24048863,3595.4,3594.5,0.028]
[1733238595661,2.24048863,3595.4,3594.5,0.578]
[1733238595662,1.6523,3595.4,3594.5,0.578]
[1733238596027,1.6523,3595.4,3594.5,0.028]
[1733238596408,0.0279135,3595.3,3594.5,0.028]
[1733238597050,3.0,3595.2,3594.5,0.028]
[1733238597460,4.6802135,3595.4,3594.5,0.028]
[1733238597758,4.17696698,3595.3,3594.5,0.028]
[1733238598125,1.6523,3595.4,3594.5,0.028]
[1733238598666,1.6802135,3595.4,3594.5,0.028]
[1733238598816,1.6523,3595.4,3594.5,0.028]
[1733238599015,0.0279135,3595.3,3594.5,0.028]
[1733238599213,1.6523,3595.4,3594.5,0.028]
[1733238599530,3.89604863,3595.3,3594.5,0.028]
[1733238599954,0.0279135,3595.2,3594.5,0.028]
[1733238600368,3.89604863,3595.3,3594.5,0.028]
[1733238600665,1.6508,3596.0,3594.8,2.78172]
[1733238600859,1.6508,3596.0,3594.8,0.028]
[1733238601059,0.0279135,3595.9,3594.8,0.028]
[1733238601373,1.6508,3596.0,3594.8,0.028]
[1733238601550,0.62381213,3595.9,3594.8,0.028]
[1733238601883,0.59589863,3595.9,3594.8,0.028]
[1733238602018,0.0279135,3595.8,3594.8,0.028]
[1733238602226,1.6508,3596.0,3594.8,0.028]
[1733238602569,4.66488392,3596.6,3594.8,0.028]
[1733238602570,1.5904,3596.5,3595.2,0.55]
[1733238602867,2.78056,3596.4,3595.4,0.55]
[1733238603069,0.0279135,3596.3,3595.4,0.028]
[1733238603233,1.5904,3596.5,3595.5,0.55]
[1733238603439,1.5904,3596.5,3595.6,1.5021]
[1733238603617,1.547,3597.0,3595.6,4.3112]
[1733238603825,0.86352163,3596.9,3595.7,0.55]
[1733238604022,0.86352163,3596.9,3595.7,0.578]
[1733238604270,0.89143513,3596.9,3595.7,0.578]
[1733238604466,2.78027,3596.8,3595.7,0.028]
[1733238604618,0.0279135,3596.7,3595.7,0.028]
[1733238604823,0.52185351,3596.7,3595.7,0.028]
[1733238605023,4.3360998,3596.6,3595.7,0.028]
[1733238605469,3.0279135,3596.5,3595.7,1.6163]
[1733238605625,1.6618,3596.4,3595.7,0.028]
[1733238605822,5.78094,3595.9,3595.7,0.028]
[1733238606165,8.47964613,3595.8,3595.7,0.028]
[1733238606368,8.45173263,3595.8,3595.7,0.028]
[1733238606936,7.88044,3596.6,3595.7,0.028]
[1733238606937,4.5848,3596.2,3595.7,0.028]
[1733238607132,1.5848,3596.7,3595.7,0.028]
[1733238607437,3.0,3596.0,3595.7,0.028]
[1733238607678,4.3667735,3595.9,3595.7,0.028]
[1733238607837,1.5579,3595.9,3595.7,0.028]
[1733238608037,4.3081863,3596.6,3595.7,0.028]
[1733238608038,3.0,3596.2,3595.7,0.028]
[1733238608336,1.5579,3596.4,3595.7,0.028]
[1733238608537,1.5579,3596.9,3595.7,0.028]
[1733238608855,2.78042,3596.6,3595.7,0.028]
[1733238609089,3.0279135,3596.5,3595.7,0.028]
[1733238609407,7.33682,3595.8,3595.7,0.028]
[1733238609710,9.07940263,3595.8,3595.7,0.028]
[1733238609875,7.52360263,3595.8,3593.8,1.5559]
[1733238610076,7.3081863,3595.2,3593.8,1.5559]
[1733238610411,4.3081863,3594.7,3593.8,1.5559]
[1733238610565,2.78206,3594.5,3593.3,2.12499187]
[1733238610760,0.73972948,3594.4,3593.3,1.5559]
[1733238611112,3.0,3593.9,3593.3,1.5559]
[1733238611268,0.71181598,3594.4,3593.1,2.78309]
[1733238611470,3.71181598,3594.4,3593.1,2.78309]
[1733238611679,3.73972948,3594.4,3593.1,2.78309]
[1733238611965,3.0,3594.6,3593.2,1.6466]
[1733238612204,1.5558,3594.8,3593.2,1.6466]
[1733238612366,1.6552,3595.3,3593.4,1.6466]
[1733238612561,3.0,3595.5,3594.3,2.78216]
[1733238612889,2.78176,3594.9,3593.6,1.6466]
[1733238613094,1.5837,3594.7,3592.7,0.02782509]
[1733238613275,3.0,3594.2,3593.6,0.028]
[1733238613483,0.0279135,3594.1,3592.7,0.58879656]
[1733238613781,2.78252,3593.9,3592.7,0.58879656]
[1733238613988,0.0279135,3593.8,3592.7,0.028]
[1733238614179,0.0279135,3593.8,3592.7,0.309149]
[1733238614370,0.0279135,3593.8,3592.7,3.092559]
[1733238614709,3.0279135,3593.9,3592.7,0.309149]
[1733238614910,2.78276,3593.6,3592.7,0.028]
[1733238615065,0.0279135,3593.5,3592.7,0.028]
[1733238615411,3.0,3593.4,3592.7,0.028]
[1733238615708,5.7832,3593.0,3592.7,0.028]
[1733238616016,3.0,3593.7,3592.8,1.604]
[1733238616216,3.0,3594.2,3592.9,0.1632]
[1733238616364,1.5931,3595.2,3593.3,1.5334]
[1733238616588,1.5931,3595.2,3593.3,1.5614]
[1733238616788,1.5931,3595.2,3593.5,2.78275]
[1733238617028,1.5931,3595.7,3594.6,2.78191]
[1733238617231,2.47349397,3595.7,3594.6,0.028]
[1733238617386,2.47349397,3595.7,3594.6,1.5891]
[1733238617592,0.0279135,3595.6,3594.6,1.5891]
[1733238617787,2.47349397,3595.7,3594.6,1.5891]
[1733238618030,2.47349397,3595.7,3594.6,4.37102]
[1733238618216,0.5347701,3595.6,3594.6,1.5891]
[1733238618418,1.5488,3596.2,3594.7,0.02781607]
[1733238618620,1.5488,3596.2,3595.0,0.55]
[1733238618921,0.0279135,3596.1,3595.0,0.578]
[1733238619094,1.5488,3596.2,3595.1,2.78155]
[1733238619289,1.5488,3596.6,3595.2,0.55]
[1733238619640,1.5488,3596.6,3595.3,1.567]
[1733238619790,0.0279135,3596.5,3595.3,1.595]
[1733238620325,1.5488,3596.6,3595.3,1.595]
[1733238620526,2.78058,3596.4,3595.3,1.595]
[1733238620851,4.77182915,3596.3,3595.3,0.028]
[1733238621058,3.0279135,3596.2,3595.3,0.028]
[1733238621257,1.5488,3596.6,3595.3,0.028]
[1733238621431,1.5488,3596.6,3595.3,2.80933]
[1733238621633,1.5488,3596.6,3595.3,0.028]
[1733238621973,4.3081863,3596.8,3595.8,2.78097]
[1733238622157,0.58828863,3596.7,3595.4,1.6109]
[1733238622354,0.61620213,3596.7,3595.4,1.6109]
[1733238622673,0.61620213,3596.7,3595.4,4.3922]
[1733238623021,3.61620213,3596.7,3595.4,4.3922]
[1733238623224,3.0,3596.5,3595.4,1.6109]
[1733238623540,3.0,3596.2,3595.3,0.028]
[1733238623742,2.8087035,3596.1,3595.3,0.028]
[1733238623945,3.0279135,3596.0,3595.3,0.028]
[1733238624177,3.0,3595.7,3595.3,0.028]
[1733238624473,0.0279135,3595.6,3595.3,0.028]
[1733238624632,0.77354885,3595.6,3595.3,0.028]
[1733238624827,0.0279135,3595.6,3595.3,0.028]
[1733238625037,5.78133,3595.4,3595.3,0.028]
[1733238625377,1.6592,3595.5,3595.3,0.028]
[1733238625727,0.0279135,3595.4,3595.3,0.028]
[1733238625926,1.6592,3595.5,3595.3,0.028]
[1733238626227,0.46871135,3595.4,3595.3,0.028]
[1733238626465,0.49662485,3595.4,3595.3,0.028]
[1733238626623,6.27795485,3595.4,3595.3,0.028]
[1733238626825,7.83544135,3595.4,3595.3,0.028]
[1733238627082,5.05411135,3595.4,3595.3,0.028]
[1733238627230,1.5854,3595.4,3595.3,0.028]
[1733238627567,1.5854,3596.0,3595.3,0.028]
[1733238628082,2.7811,3595.7,3595.3,0.028]
[1733238628296,0.0279135,3595.6,3595.3,0.028]
[1733238628438,2.78133,3595.4,3595.3,0.028]
[1733238628741,2.78133,3595.4,3592.9,1.5659]
[1733238628742,3.0,3594.3,3592.9,1.5659]
[1733238628936,3.0,3594.8,3593.0,0.55218617]
[1733238629139,3.0,3595.3,3593.1,1.59372392]
[1733238629341,3.0279135,3595.3,3593.9,1.5659]
[1733238629583,1.87362435,3595.4,3594.0,2.78238]
[1733238629789,3.0,3595.3,3594.1,0.434828]
[1733238629954,0.0279135,3595.2,3593.9,1.5659]
[1733238630153,1.5927,3595.4,3594.0,2.7824]
[1733238630352,0.0279135,3595.3,3593.9,1.5659]
[1733238630686,1.5927,3594.6,3593.5,1.5659]
[1733238631041,0.0279135,3594.5,3593.5,1.5659]
[1733238631240,1.5927,3594.6,3593.5,1.72249]
[1733238631582,2.78164,3595.0,3593.5,1.72249]
[1733238631583,5.78172,3594.9,3593.5,1.75049]
[1733238631794,0.0279135,3594.8,3593.5,2.31141982]
[1733238632001,2.8097235,3594.8,3593.5,2.31141982]
[1733238632168,0.04797232,3594.7,3593.5,2.31141982]
[1733238632368,0.04797232,3594.7,3593.6,0.25896506]
[1733238632587,0.04797232,3594.7,3593.6,0.25914198]
[1733238632969,2.78187,3594.7,3593.6,0.25914198]
[1733238633184,0.07446029,3594.6,3593.6,0.25914198]
[1733238633361,2.78211,3594.4,3593.6,0.028]
[1733238633558,0.0279135,3594.3,3593.6,0.028]
[1733238633803,1.5669,3594.2,3593.6,0.028]
[1733238633970,0.0279135,3594.1,3593.6,0.028]
[1733238634168,3.0,3594.0,3593.6,0.028]
[1733238634508,11.27985764,3593.7,3593.6,0.028]
[1733238634812,11.32509849,3593.7,3593.6,0.028]
[1733238635165,2.78337,3592.8,3591.9,1.6634]
[1733238635513,2.7835,3592.6,3591.9,1.6634]
[1733238635677,3.07256259,3592.5,3591.4,1.6634]
[1733238635876,3.07256259,3592.5,3591.4,1.82974]
[1733238636206,3.07256259,3592.5,3591.5,0.57053577]
[1733238636409,0.04464909,3592.5,3591.4,1.82974]
[1733238636591,0.0279135,3592.4,3591.4,1.82974]
[1733238636775,0.04464909,3592.5,3591.4,2.38529245]
[1733238636985,0.04446533,3592.3,3591.5,0.51698625]
[1733238637178,0.04461686,3592.4,3591.5,0.51698625]
[1733238637394,0.04401959,3592.2,3591.5,0.51698625]
[1733238637706,1.6781135,3592.6,3590.9,1.5863]
[1733238638211,1.6781135,3592.6,3591.0,0.54719744]
[1733238638593,3.0,3592.3,3591.0,3.33192744]
[1733238638794,3.0,3592.3,3591.0,0.54719744]
[1733238638995,3.527137,3592.3,3591.0,1.05766118]
[1733238639226,3.0,3592.2,3591.0,1.05766118]
[1733238639424,0.743387,3592.3,3591.0,0.54719744]
[1733238639625,0.04350871,3592.1,3591.0,0.54719744]
[1733238639937,0.04293622,3592.0,3591.0,0.54719744]
[1733238640610,3.0,3592.2,3591.0,0.54719744]
[1733238640810,0.04289968,3591.9,3591.0,0.54719744]
[1733238641009,0.04360576,3592.1,3591.0,0.77918018]
[1733238641213,0.04345219,3591.8,3591.0,0.77918018]
[1733238641503,0.743387,3592.3,3591.0,0.77918018]
[1733238641813,0.04303818,3592.2,3591.1,0.55]
[1733238641998,0.04303818,3592.2,3591.3,0.55]
[1733238642201,3.0,3592.6,3591.2,1.6161]
[1733238642398,0.0279135,3592.5,3591.3,0.028]
[1733238642692,4.30976647,3592.2,3591.3,0.028]
[1733238642896,3.95440669,3592.1,3591.3,0.028]
[1733238643143,3.92649319,3592.1,3591.3,0.028]
[1733238644344,0.0279135,3592.0,3591.3,0.028]
[1733238644733,0.04278609,3591.9,3591.3,0.028]
[1733238645039,0.0279135,3591.8,3591.3,0.028]
[1733238645196,3.0,3591.6,3591.3,0.028]
[1733238645395,0.92568635,3591.5,3591.3,0.028]
[1733238645939,0.0427685,3591.4,3591.3,0.028]
[1733238646925,0.0279135,3591.6,3591.3,0.028]
[1733238647211,0.04305261,3591.5,3591.3,0.028]
[1733238647413,0.0279135,3591.4,3591.3,0.028]
[1733238647610,0.92571676,3591.4,3591.3,0.028]
[1733238647856,0.96782028,3591.4,3591.3,0.028]
[1733238648445,0.93990678,3591.4,3591.3,0.028]
[1733238648755,0.96782028,3591.4,3591.3,0.028]
[1733238649306,5.51812028,3591.4,3591.3,0.028]
[1733238650560,5.49020678,3591.4,3591.3,0.028]
[1733238650714,5.51812028,3591.4,3591.3,0.028]
[1733238651341,5.49020678,3591.4,3591.3,0.028]
[1733238651539,1.59240352,3591.4,3591.3,0.028]
[1733238651739,1.62031702,3591.4,3591.3,0.028]
[1733238651945,0.07001702,3591.4,3591.3,0.028]
[1733238652763,0.04210352,3591.4,3591.3,0.028]
[1733238652934,0.04210352,3591.4,3591.3,1.673]
[1733238653117,0.0279135,3592.1,3591.3,1.673]
[1733238653317,4.30976647,3591.9,3591.3,0.028]
[1733238653517,0.06983389,3591.8,3591.3,0.028]
[1733238653752,1.5408,3591.7,3591.3,0.028]
[1733238653956,0.0279135,3591.6,3591.3,0.028]
[1733238654154,0.06975867,3591.6,3591.3,0.028]
[1733238654375,3.46105587,3591.5,3591.3,0.028]
[1733238654535,0.0279135,3591.4,3591.3,0.028]
[1733238654731,0.06968345,3591.4,3591.3,0.028]
[1733238654982,0.06968345,3591.4,3590.7,0.15833]
[1733238655468,0.04176995,3591.4,3590.7,0.15833]
[1733238655677,1.07404603,3591.4,3590.7,0.15833]
[1733238655976,0.06968345,3591.4,3590.7,0.15833]
[1733238656478,0.06968345,3591.4,3590.9,0.55]
[1733238656479,0.04176995,3591.4,3590.9,0.55]
[1733238656636,1.5207,3592.7,3591.1,1.6336]
[1733238656839,0.06997797,3592.6,3591.1,1.6336]
[1733238657686,0.06997797,3592.6,3591.1,1.6616]
[1733238657891,0.06997797,3592.6,3591.2,0.16616]
[1733238658044,0.04206447,3592.6,3591.4,1.6581]
[1733238658244,0.04206447,3592.6,3591.4,1.6861]
[1733238658566,0.0279135,3592.5,3591.4,1.6861]
[1733238658767,0.0279135,3592.5,3591.5,0.54879697]
[1733238658968,1.5921,3593.2,3591.5,0.54879697]
[1733238658969,0.04297922,3592.4,3591.6,0.2234897]
[1733238659281,0.0279135,3593.1,3591.6,0.2514897]
[1733238659450,0.04372676,3593.0,3591.6,0.2514897]
[1733238659657,0.0279135,3592.9,3591.6,0.2514897]
[1733238659853,0.04406968,3592.8,3591.6,0.2514897]
[1733238660057,0.0279135,3592.7,3591.7,0.24583867]
[1733238660254,0.04397731,3592.6,3591.7,0.27383867]
[1733238660475,0.0279135,3593.1,3591.7,0.27383867]
[1733238660641,0.04433062,3593.0,3591.7,0.27383867]
[1733238660842,0.0279135,3592.9,3591.7,0.27383867]
[1733238661080,0.04411108,3592.8,3591.7,0.27383867]
[1733238661277,0.04411108,3592.8,3591.7,0.028]
[1733238661278,0.0279135,3592.7,3591.7,0.028]
[1733238661456,0.04419147,3592.6,3591.7,0.028]
[1733238661661,0.0279135,3592.5,3591.7,0.028]
[1733238661911,1.616,3592.3,3591.7,0.028]
[1733238662222,0.24072081,3592.2,3591.7,0.028]
[1733238662591,0.04400768,3592.2,3591.7,0.028]
[1733238663209,1.6439135,3593.1,3591.7,0.028]
[1733238663437,1.616,3593.1,3591.8,1.5214]
[1733238663732,0.07146621,3593.0,3592.0,0.55590695]
[1733238663939,0.07146621,3593.0,3592.0,0.58390695]
[1733238664158,0.04355271,3593.0,3592.0,0.79443765]
[1733238664597,0.04355271,3593.0,3592.1,0.55]
[1733238664990,1.5133,3593.5,3592.1,0.55]
[1733238665234,0.04360929,3592.9,3592.1,0.578]
[1733238665411,0.0279135,3593.4,3592.1,0.578]
[1733238665629,0.04367835,3592.8,3592.4,0.55]
[1733238665824,1.6622,3594.0,3592.7,1.6094]
[1733238666051,1.6622,3594.0,3592.7,1.6374]
[1733238666259,0.04386337,3593.9,3592.7,1.6374]
[1733238666411,0.0279135,3593.9,3592.7,1.6374]
[1733238666817,0.04382581,3593.8,3592.7,1.6374]
[1733238667043,1.6471,3593.6,3592.7,0.028]
[1733238667244,1.6471,3593.4,3592.7,0.028]
[1733238667458,0.0279135,3593.3,3592.7,0.028]
[1733238667608,0.07216335,3593.3,3592.7,0.028]
[1733238667814,0.04424985,3593.3,3592.7,1.597]
[1733238668028,0.04424985,3593.3,3592.8,0.18753076]
[1733238668322,1.6750135,3594.3,3592.8,0.1597]
[1733238668517,0.04412276,3594.2,3592.9,0.55]
[1733238668742,0.0279135,3594.1,3592.9,0.55]
[1733238668924,0.04412276,3594.2,3592.9,0.55]
[1733238668925,0.04464731,3594.0,3592.9,0.55]
[1733238669138,0.04464731,3594.0,3593.2,1.5316]
[1733238669351,1.5645,3594.7,3593.3,0.55]
[1733238669544,0.07277948,3594.6,3593.3,0.028]
[1733238670524,0.07277948,3594.6,3593.5,0.56401827]
[1733238670768,0.04486598,3594.6,3593.5,0.59201827]
[1733238670934,0.04486598,3594.6,3593.7,1.6252]
[1733238671137,0.0279135,3595.0,3593.8,0.22450452]
[1733238671448,0.04536189,3594.9,3593.8,0.25250452]
[1733238671851,0.0279135,3594.8,3593.8,0.25250452]
[1733238672236,0.04408298,3594.7,3593.8,0.25250452]
[1733238672434,0.04408298,3594.7,3593.9,0.55]
[1733238672685,0.0279135,3595.1,3594.1,0.55]
[1733238672824,0.04417595,3594.6,3594.1,0.55]
[1733238673026,0.58636011,3595.1,3594.1,0.028]
[1733238673278,0.04405067,3594.5,3594.1,0.028]
[1733238673460,0.58636011,3595.1,3594.1,0.028]
[1733238673770,0.21061601,3595.0,3594.1,0.028]
[1733238674074,0.07214409,3594.9,3594.1,0.028]
[1733238675573,0.0279135,3594.8,3594.1,0.028]
[1733238675778,0.04397194,3594.7,3594.1,0.028]
[1733238676127,1.5424,3595.6,3594.2,1.5647]
[1733238676374,0.0444248,3595.5,3594.3,0.76427]
[1733238676522,0.0444248,3595.5,3594.3,0.79227]
[1733238676972,1.57,3595.8,3594.6,2.1389]
[1733238677187,0.04449612,3595.7,3594.6,1.6169]
[1733238677324,1.6096,3595.6,3594.6,0.028]
[1733238677523,5.0,3595.9,3594.6,0.028]
[1733238677524,5.46645214,3595.4,3594.6,0.028]
[1733238677728,0.07265391,3595.3,3594.6,0.028]
[1733238677930,0.55391061,3595.2,3594.6,0.028]
[1733238678176,0.07259744,3595.1,3594.6,0.028]
[1733238678370,4.6096,3594.9,3594.6,0.028]
[1733238678528,0.07251456,3594.8,3594.6,0.028]
[1733238679170,1.6245,3594.7,3594.6,0.028]
[1733238679342,5.52426418,3594.7,3594.6,0.028]
[1733238679540,1.6245,3594.5,3592.2,1.547]
[1733238679740,4.6245,3594.0,3592.7,0.5657235]
[1733238679947,0.07179717,3593.9,3592.7,0.5657235]
[1733238680378,0.04388367,3593.9,3592.8,1.547]
[1733238680562,0.04388367,3593.9,3592.9,0.21127235]
[1733238680761,0.0279135,3594.6,3592.9,0.21127235]
[1733238681031,4.6019,3594.4,3592.8,1.547]
[1733238681278,0.0279135,3594.3,3592.8,1.547]
[1733238681572,0.0438404,3594.3,3592.8,1.547]
[1733238681772,0.0717539,3594.3,3592.8,1.547]
[1733238681977,0.0717539,3594.3,3592.8,1.575]
[1733238682174,1.5933,3594.1,3592.8,0.028]
[1733238682377,0.07152586,3594.0,3592.8,0.028]
[1733238682561,0.07152586,3594.0,3592.8,0.58729526]
[1733238683071,0.04361236,3594.0,3592.8,0.58729526]
[1733238683392,0.04361236,3594.0,3593.0,1.5371]
[1733238683680,0.04361236,3594.0,3593.2,0.55]
[1733238683886,1.5872135,3594.7,3593.2,0.55]
[1733238684062,0.04190522,3593.9,3593.2,0.028]
[1733238684253,1.6603,3594.4,3593.2,0.028]
[1733238684442,0.04201673,3593.8,3593.2,0.028]
[1733238684636,0.0279135,3594.3,3593.2,0.028]
[1733238684841,0.04212451,3593.7,3593.2,0.028]
[1733238685088,0.0279135,3594.1,3593.2,0.028]
[1733238685297,0.04208696,3593.6,3593.2,0.028]
[1733238685438,0.0279135,3593.5,3593.2,0.028]
[1733238685639,0.0699033,3593.5,3593.2,0.028]
[1733238685840,0.0419898,3593.5,3593.2,0.028]
[1733238686281,0.0279135,3593.9,3593.2,0.028]
[1733238686483,0.04177708,3593.4,3593.2,0.028]
[1733238686639,0.0279135,3593.9,3593.2,0.028]
[1733238686841,0.0417241,3593.3,3593.2,0.028]
[1733238687084,0.0279135,3593.9,3593.2,0.028]
[1733238687378,0.84880656,3593.8,3593.2,0.028]
[1733238687588,3.92676676,3593.7,3593.2,0.028]
[1733238687756,0.06991462,3593.7,3593.2,0.028]
[1733238688408,0.04200112,3593.7,3593.2,0.028]
[1733238688946,7.88991383,3595.0,3593.2,0.028]
[1733238688947,1.5717,3594.1,3593.2,0.028]
[1733238689294,0.22695136,3594.0,3593.2,0.028]
[1733238691495,0.19903786,3594.0,3593.2,0.028]
[1733238691702,0.04186786,3594.0,3593.3,1.5082]
[1733238691852,0.04186786,3594.0,3593.3,1.5362]
[1733238692052,0.0279135,3594.4,3593.3,1.5362]
[1733238692251,0.04193465,3593.9,3593.3,1.5362]
[1733238692566,0.04191574,3593.8,3593.3,1.5362]
[1733238692796,1.6492,3594.5,3593.3,1.74557816]
[1733238693095,0.0279135,3594.4,3593.3,1.74557816]
[1733238693248,0.07005452,3594.4,3593.3,1.5362]
[1733238693911,0.04214102,3594.4,3593.3,1.5362]
[1733238694251,0.0279135,3594.8,3593.3,1.5362]
[1733238694490,0.04226747,3594.3,3593.3,1.5362]
[1733238694702,0.0279135,3594.8,3593.4,0.55]
[1733238694885,0.04255012,3594.2,3593.7,1.5028]
[1733238695173,0.0279135,3595.1,3593.7,1.5308]
[1733238695389,0.0427966,3595.0,3593.7,1.5308]
[1733238696172,0.0427966,3595.0,3594.2,1.529]
[1733238696520,0.0427966,3595.0,3594.3,0.55]
[1733238696716,0.0427966,3595.0,3594.2,1.557]
[1733238696717,1.15596553,3595.5,3594.6,1.529]
[1733238697125,0.04151838,3595.4,3594.7,0.55]
[1733238697417,0.04151838,3595.4,3595.0,1.5054]
[1733238697721,0.04151838,3595.4,3595.3,0.55]
[1733238698266,0.04151838,3595.4,3595.0,0.028]
[1733238698472,0.04151838,3595.4,3595.1,0.55]
[1733238699231,0.04151838,3595.4,3595.3,0.56059981]
[1733238699810,0.04151838,3595.4,3595.3,2.74359981]
[1733238700101,0.04151838,3595.4,3595.3,2.19359981]
[1733238700305,0.04151838,3595.4,3595.3,2.74359981]
[1733238700550,0.04151838,3595.4,3595.3,3.02075979]
[1733238700852,0.04151838,3595.4,3595.3,6.87761193]
[1733238701045,0.04151838,3595.4,3595.3,0.56059981]
[1733238701556,0.04188905,3595.4,3595.3,2.06999981]
[1733238701711,1.7339483,3595.7,3595.4,1.6615]
[1733238702250,1.7339483,3595.7,3595.6,6.06565214]
[1733238702550,1.7339483,3595.7,3595.6,2.8942252]
[1733238702751,0.88678116,3595.7,3595.6,2.2088]
[1733238702966,2.31193107,3596.0,3595.8,1.6588]
[1733238703266,2.31193107,3596.0,3595.9,2.2088]
[1733238705298,1.24564946,3596.0,3595.9,2.2088]
[1733238705507,1.2845121,3596.0,3595.9,2.2368]
[1733238705734,1.2845121,3596.0,3595.9,2.46048]
[1733238706608,1.6149,3597.6,3595.9,2.46048]
[1733238706810,1.6149,3597.6,3596.0,0.55]
[1733238707048,0.03926604,3597.3,3596.0,0.55]
[1733238707693,0.06717954,3597.3,3596.0,0.55]
[1733238708008,0.8088909,3597.3,3596.4,0.55461094]